Cogmind - Beta 16 @@@ ROGUE MODE // 2025.12.16 @ 02:53:17 Player: WR Result: Destroyed by D-53 Grenadier with Mini Grenade Launcher Performance ------------- Evolutions (0) 0 Regions Visited (2) 400 Robots Destroyed (17) 85 Value Destroyed (462) 462 Prototype IDs (2) 40 Alien Tech Used (0) 0 Bonus (0) 0 TOTAL SCORE: 987 Bonus ------- None Cogmind --------- Core Integrity 0/250 Matter 210/300 Energy 88/100 System Corruption 0% Temperature Cool (3) Movement Core (50) Location -10/Mines Parts ------- > --- POWER (1) -------- (None) > --- PROPULSION (2) --- (None) > --- UTILITY (2) ------ Heat Sink > --- WEAPON (2) ------- (None) > --- INVENTORY (5) ---- High-capacity Storage Unit Peak State ------------ > --- POWER ------------ Light Ion Engine > --- PROPULSION ------- Wheel Wheel > --- UTILITY ---------- Heat Sink Tractor Beam > --- WEAPON ----------- Light Assault Rifle Light Assault Rifle > --- INVENTORY -------- Flight Unit High-capacity Storage Unit Assault Rifle [Rating: 7] Favorites ----------- Power Light Ion Engine Engine Light Ion Engine Propulsion Wheel Wheel Wheel Flight Unit Flight Unit Utility Light Armor Plating Device Heat Sink Storage High-capacity Storage Unit Protection Light Armor Plating Weapon Light Assault Rifle Ballistic Gun Light Assault Rifle Launcher Grenade Launcher Build | -11 -10 -10 ------- Run | Yrd Mat Min Slots Evolved . | . . . Power . | . . . Propulsion . | . . . Utility . | . . . Weapon . | . . . Parts Attached 15 | 5 7 3 Power 2 | 1 1 . Engine 2 | 1 1 . Core . | . . . Reactor . | . . . Propulsion 5 | 2 3 . Treads . | . . . Leg . | . . . Wheel 3 | 2 1 . Hover . | . . . Flight 2 | . 2 . Utility 4 | . 2 2 Device 2 | . . 2 Storage 1 | . 1 . Processor . | . . . Hackware . | . . . Protection 1 | . 1 . Artifact . | . . . Weapon 4 | 2 1 1 Energy Gun . | . . . Energy Cannon . | . . . Ballistic Gun 3 | 2 . 1 Ballistic Cannon . | . . . Launcher 1 | . 1 . Special Weapon . | . . . Impact Weapon . | . . . Slashing Weapon . | . . . Piercing Weapon . | . . . Special Melee Weapon . | . . . Unidentified Prototypes . | . . . Parts Lost 13 | . 4 9 Power 2 | . 1 1 Propulsion 5 | . 1 4 Utility 2 | . 1 1 Weapon 4 | . 1 3 Highest Loss Streak 8 | . 2 8 To Critical Strikes . | . . . Average Backups 3 | 2 3 3 Power . | . . . Propulsion 1 | 1 1 1 Utility . | . . 1 Weapon 1 | . 1 . Tool/Special . | . . . Unused Backups 2 | . 2 . Power . | . . . Propulsion 2 | . 2 . Utility . | . . . Weapon . | . . . Tool/Special . | . . . Average Slot Usage (%) 76 | . 74 79 Engine 11 | . 10 14 Wheel 18 | . 20 15 Flight 5 | . 5 5 Device 5 | . . 20 Protection 5 | . 8 . Ballistic Gun 24 | . 24 24 Launcher 1 | . 2 . Peak Build Rating 7 | 5 6 7 Average Rating 5 | 3 5 5 On Entrance 3 | . 5 5 Avg Prop Armor Cover (%) 5 | . 5 . Naked Turns . | . . . Heaviest Build 42 | 5 42 7 Greatest Support 20 | 20 20 20 Greatest Overweight (x) 2 | . 2 2 Average Overweight (x) . | . . . Largest Inventory Capacity 20 | 5 20 5 Average Capacity 5 | 5 6 5 Most Carried 5 | 5 5 5 Average Carried 3 | 2 3 3 Final Capacity 5 | 5 5 5 Final Carried 5 | 5 5 1 Class Distribution -------------------- 100% | Mutant Dominant Class ---------------- Mutant | -10/Materials Mutant | -10/Mines Resources | -11 -10 -10 ----------- Run | Yrd Mat Min Matter Collected 451 | 260 57 134 Remotely 40 | . . 40 Salvage Created 472 | 73 265 134 Parts 25 | 4 14 7 Haulers Intercepted . | . . . Recyclers Shooed . | . . . Parts Field Recycled . | . . . Retrieved Matter . | . . . Parts Self-Destructed . | . . . Prevented . | . . . Parts Restored . | . . . Kills | -11 -10 -10 ------- Run | Yrd Mat Min Combat Hostiles Destroyed 15 | 1 9 5 Guns 10 | 1 4 5 AOE 5 | . 5 . Classes Destroyed 4 | 2 2 . Worker 1 | 1 . . Operator 1 | . 1 . Swarmer 6 | . 3 3 Grunt 9 | 1 6 2 Best Kill Streak 6 | 1 6 3 Combat Bots Only 6 | 1 6 3 Max Kills in Single Turn 2 | 1 2 1 Gunslinging . | . . . Exploded 2 | . 2 . Melee . | . . . Uniques/NPCs Destroyed . | . . . Combat | -11 -10 -10 -------- Run | Yrd Mat Min Hostile Shots Fired 83 | 4 41 38 Missed 25 | 3 15 7 Hits 58 | 1 26 31 Projectile 58 | 1 26 31 AOE 6 | . . 6 Damage Taken 959 | 11 466 482 Core 255 | . 104 151 Absorbed by Shields . | . . . Core Remaining (%) 100 | 100 . . Volleys Fired 64 | 5 38 21 Largest 2 | 2 2 2 Hottest 50 | 40 50 40 Shots Fired 110 | 10 71 29 Gun 103 | 10 64 29 Cannon . | . . . Launcher 7 | . 7 . Special . | . . . Kinetic 103 | 10 64 29 Thermal . | . . . Explosive 7 | . 7 . Electromagnetic . | . . . Robot Hit Streak 8 | 3 8 6 Robot Miss Streak 3 | 1 2 3 Penetration Max . | . . . Secondary Targets 1 | . 1 . Max Gunslinging Chain 1 | . 1 . Shots Hit Robots 68 | 7 42 19 Core Hits 34 | 3 22 9 Critical Kills . | . . . Critical Parts Destroyed . | . . . Critical Strikes . | . . . Melee Attacks . | . . . Impact . | . . . Slashing . | . . . Piercing . | . . . Sneak Attacks . | . . . Combat Hostiles . | . . . Follow-up Attacks . | . . . Damage Inflicted 866 | 59 612 195 Guns 604 | 59 350 195 Cannons . | . . . Explosions 258 | . 258 . Melee . | . . . Ramming 4 | . 4 . Kinetic 604 | 59 350 195 Thermal . | . . . Explosive 258 | . 258 . Electromagnetic . | . . . Impact . | . . . Slashing . | . . . Piercing . | . . . Highest Corruption . | . . . Average Corruption . | . . . Corruption Purged . | . . . Corruption Blocked . | . . . Overload Shots . | . . . Overflow Damage 29 | . 29 . Projectiles . | . . . Explosions 29 | . 29 . Melee . | . . . Knockbacks 1 | . 1 . Impact 1 | . 1 . Kinetic . | . . . Secondary . | . . . Self-Inflicted Damage 127 | . 127 . Shots 2 | . 2 . Rammed 1 | . 1 . Targets Rammed 1 | . 1 . Kicked . | . . . Crushed . | . . . Highest Temperature 107 | . 107 21 Average Temperature 42 | . 49 8 Received Heat Transfer 261 | 6 186 69 Siege Activations . | . . . Martial Activations . | . . . Shielding Activations . | . . . Robots Disrupted . | . . . Combat Hostiles . | . . . Robots Corrupted . | . . . Combat Hostiles . | . . . Parts Fried . | . . . Impact Corruptions . | . . . Robots Melted . | . . . Combat Hostiles . | . . . Parts Melted . | . . . Heat Transferred . | . . . Parts Sabotaged . | . . . Parts Stolen . | . . . Parts Stripped . | . . . Power Chain Reactions . | . . . Alert | -11 -10 -10 ------- Run | Yrd Mat Min Maximum Alert Level 1 | . 1 . Low Security (%) 81 | 100 69 100 Level 1 18 | . 30 . Level 2 . | . . . Level 3 . | . . . Level 4 . | . . . Level 5 . | . . . High Security . | . . . Max Security . | . . . Peak Influence 267 | 20 267 114 Initial 84 | . 6 84 Average 77 | 1 91 89 Influence Increases 546 | 25 386 135 Destroy 0b10 Robot/C 300 | 20 180 100 Destroy 0b10 Robot/NC 10 | 5 5 . Destroy Leader 60 | . 40 20 Successful Hack 4 | . 4 . Disable Machine 60 | . 60 . Destroy Structure 97 | . 97 . Lose Combat Pursuer 15 | . . 15 Influence Decreases 477 | 15 179 283 Entered New Map 137 | . 4 133 Time Decay 210 | 15 135 60 Lost Part 130 | . 40 90 Squads Dispatched 1 | . 1 . Investigation . | . . . Extermination . | . . . Reinforcement 1 | . 1 . Assault . | . . . Garrison . | . . . Intercept . | . . . Searches Triggered . | . . . Construction Impeded . | . . . Haulers Reinforced . | . . . Active Scanning Responses . | . . . Cargo Convoy Interrupts . | . . . Stealth | -11 -10 -10 --------- Run | Yrd Mat Min Distress Signals 1 | . 1 . Communications Jammed . | . . . Distress Signals . | . . . Times Spotted 23 | 1 14 8 Peak Tracking Total 5 | 1 3 5 Tactical Retreats 1 | . . 1 Traps | -11 -10 -10 ------- Run | Yrd Mat Min Traps Triggered . | . . . Indirectly . | . . . Trap Hack Attempts . | . . . Triggered . | . . . Disarmed . | . . . Reprogrammed . | . . . Reused . | . . . Traps Extracted . | . . . Installed . | . . . Triggered . | . . . Machines | -11 -10 -10 ---------- Run | Yrd Mat Min Machines Disabled 4 | . 4 . Max in Single Turn 3 | . 3 . Machines Repaired . | . . . Machines Dismantled . | . . . Machines Sabotaged . | . . . Overloaded Fab Kills . | . . . Hacking | -11 -10 -10 --------- Run | Yrd Mat Min Machines Accessed 2 | . 2 . Terminals 2 | . 2 . Fabricators . | . . . Repair Stations . | . . . Recycling Units . | . . . Scanalyzers . | . . . Garrison Access . | . . . Total Hacks 5 | . 5 . Successful 4 | . 4 . Failed 1 | . 1 . Catastrophic . | . . . Database Lockouts . | . . . Manual . | . . . Terminals 5 | . 5 . Fabricators . | . . . Repair Stations . | . . . Recycling Units . | . . . Scanalyzers . | . . . Garrison Access . | . . . Terminal Hacks 4 | . 4 . Record 1 | . 1 . Prototype ID Bank 1 | . 1 . Alert Level 1 | . 1 . Dispatch Records 1 | . 1 . Fabricator Hacks . | . . . Repair Station Hacks . | . . . Recycling Unit Hacks . | . . . Scanalyzer . | . . . Garrison Access Hacks . | . . . Unauthorized Hacks . | . . . Terminals . | . . . Fabricators . | . . . Repair Stations . | . . . Recycling Units . | . . . Scanalyzers . | . . . Garrison Access . | . . . Data Cores Recovered 1 | . 1 . Used 1 | . 1 . Hacking Detections 1 | . 1 . Full Trace Events . | . . . Feedback Events . | . . . Feedback Blocked . | . . . Robot Schematics Acquired . | . . . Robots Built . | . . . Authchips . | . . . Time . | . . . Total Robot Build Rating . | . . . Part Schematics Acquired . | . . . Parts Built . | . . . Authchips . | . . . Time . | . . . Total Part Build Rating . | . . . Part Studies Acquired . | . . . Parts Repaired . | . . . Time . | . . . Parts Recycled . | . . . Recycled Matter . | . . . Retrieved Matter . | . . . Retrieved Components . | . . . Parts Scanalyzed . | . . . Part Schematics Acquired . | . . . Parts Damaged . | . . . Bothacking | -11 -10 -10 ------------ Run | Yrd Mat Min Used RIF Installer . | . . . Robots Hacked . | . . . Non-combat . | . . . Combat . | . . . Robot Hacks Applied . | . . . Relay Couplers Released . | . . . Fabnet Peak Effective % . | . . . Robots Rewired . | . . . Allies Hacked . | . . . Hacks Repelled . | . . . Allies | -11 -10 -10 -------- Run | Yrd Mat Min Total Allies . | . . . Largest Group . | . . . Highest-Rated Group . | . . . Highest-Rated Ally . | . . . Total Orders . | . . . Ally Attacks . | . . . Total Damage . | . . . Kills . | . . . Allies Corrupted . | . . . Allies Melted . | . . . Intel | -11 -10 -10 ------- Run | Yrd Mat Min Active Infowar (turns) . | . . . Robot Analysis Total . | . . . Derelict Logs Recovered . | . . . Drone Launches . | . . . Drone Recoveries . | . . . Exploration | -11 -10 -10 ------------- Run | Yrd Mat Min Turns Passed 535 | 81 320 134 Spaces Moved 388 | 73 216 99 Core 26 | 17 . 9 Treads . | . . . Legs . | . . . Wheels 312 | 56 171 85 Hover . | . . . Flight 50 | . 45 5 Fastest Speed 40 | 50 80 40 Average Speed 84 | 73 90 80 Slowest Speed 150 | 80 120 150 Overloaded Moves . | . . . Propulsion Burnouts . | . . . Robots Hopped . | . . . Potential Cave-ins 1 | . . 1 Cave-ins Triggered . | . . . Exploration Rate (%) 30 | 6 60 24 Regions Visited 2 Branch Regions 1 Pre-discovered Areas . | . . . Known Exits Taken . | . . . Unknown Exits Taken 2 | 1 1 . Scrap Searched . | . . . Spaces Dug . | . . . Terrain Destroyed 116 | . 116 . Melee . | . . . Projectile . | . . . AOE 116 | . 116 . Terrain Rammed . | . . . Walls Destroyed . | . . . Machines Disabled . | . . . Actions | -11 -10 -10 --------- Run | Yrd Mat Min Total 501 | 92 282 127 Wait 8 | . 8 . Move 386 | 72 215 99 Hop . | . . . Pick Up 17 | 10 6 1 Fast Attach . | . . . Attach 16 | 5 6 5 Detach 2 | . 2 . Swap 5 | . 4 1 Drop 2 | . 2 . Fire 64 | 5 38 21 Melee . | . . . Ram 1 | . 1 . Kick . | . . . Crush . | . . . Escape Stasis . | . . . Rewire . | . . . Trap . | . . . Miscellaneous . | . . . Route ------- -11/Scrapyard -10/Materials -10/Mines History --------- Turn | Location | Event 2 | -11/Scrapyard | Met Revision 17 64 | -11/Scrapyard | Discovered new exit (range 8) 82 | -11/Scrapyard | Entered Materials 308 | -10/Materials | Build established: Mutant 365 | -10/Materials | Discovered new exit (range 14) 402 | -10/Materials | Entered Mines 419 | -10/Mines | Core integrity fell below 50% 483 | -10/Mines | Assembled infested the area 534 | -10/Mines | Core integrity fell below 20% 536 | -10/Mines | Destroyed by D-53 Grenadier with Mini Grenade Launcher Last Messages --------------- C-45 Heavy ARC bursts open, deploying its payload. D-53 Grenadier unfolds itself. Wheel destroyed. Lgt. Assault Rifle destroyed. U-05 Engineer lays Concrete. The unstable cave ceiling collapses. Wheel destroyed. S-10 Pest destroyed. Acquired 13 matter. S-10 Pest destroyed. Acquired 16 matter. S-10 Pest destroyed. Acquired 11 matter. Tractor Beam destroyed. Seismic Survey Station disabled. Lgt. Ion Engine destroyed. Assault Rifle destroyed. The unstable cave ceiling collapses. Flight Unit destroyed. Map ----- +----------------------------------------------------+ | ?????????????????????????????????????????????? | | ?????????????????????????????????????????????? | | ?????????????????????????????????????????????? | | ?????????????????????????????????????????????? | | ?????????????????????????????????????????????? | | ?????????????????????????????????????????????? | | ?????????????????????????????????????????????? | | ?????????????????????????????????????????????? | | ?????????????????????????????????????????????? | | ?????????????????????????????????????????????? | | ?????????????????????????????????????????????? | | ?????????????????????????????????????????????? | | ?????????????????????????????????????????????? | | ?????????????????????????????????????????????? | | ?????????????????????????????????????????????? | | ?????????????????????????????????????????????? | | ?????????????????????????????????????????????? | | ??????????????????????####???????????????????? | | ????????????????????### ####????????????????? | | ???????????????????## #????????????????? | | ????????????????#### #????????????????? | | ????????????????# ###??????????????? | | ????????????????# ##??????????????? | | ????????????????# d #??????????????? | | ????#???????????# #rd ##??????????????? | | ????# #????????# @ ##?????????????? | | ??? ??????###### # # #?????????????? | | ???# ?????????###### ##????????????? | | ???? ????????????## #????????????? | | ????????# ############# ##????????????? | | ???????????# ##?????????????? | | ???????????## #### ######### ##?????????????? | | #????####????????## #???????#"#??????????????? | | #?### ######??## ##??????#%#??????????????? | | ## #### ##????? " ??????????????? | | ###??####??????????????? | | ## #?????????????????? | | #####?????????????? | | ?????????????? | | # #### ####?????????????? | | ### #??#### #????????????????? | | #?###?????###### #????????????????? | | #####??????????## ##???????????????? | | #???????????# ##??????????????? | | ### #??????????## #?????????????? | | #?# ############ #?????????????? | | #?# ##?????????????? | | #?# ## ##??????????????? | | #?## ################?# #####???????????????? | | #??# #?????????????????###???????????????????? | +----------------------------------------------------+ Best States ------------- Heat Dissipation 35 Energy Generation 10 Energy Capacity 125 Matter Stores 300 Matter Capacity 300 Sight Range 16 Terrain Scan Density 10 Armor Coverage 150 Evasion (%) 50 Item Schematics ----------------- None Robot Schematics ------------------ None Fabricated ------------ Nothing Repaired ---------- Nothing Studied --------- None Alien Tech Used ----------------- None Achievements -------------- DATA ERROR: Steam Global Achievement% Dynamic Key For Emergencies Only Challenges ------------ None Game ------ Seed PitchforkThermoelectricChip Manual? 0 Play Time 00:12:24 Cumulative 0.9 hours Start 2025.12.16 @ 02:42:36 End 2025.12.16 @ 02:53:17 Sessions 1 Manual Loads 0 Difficulty Rogue Special Mode None Game No. 2 Rogue 2 Adventurer 0 Explorer 0 Win Type - Total 0 Types 0/0/0/0/0/0/0/0/0/0 Lore% 1 Gallery% 3 Achievement% 3 Wizard Run 0 Options --------- Layout 1 ASCII 0 Keyboard 0 Movement Mouse Keybinds 0 Fullscreen 1 Font 24/Smallcaps Map View 50x35 Zoom Use 0% Tactical HUD 0 Map Filters NONE Filters NONE Steam 1 RUN: ee2cf6d0-a1cb-49e6-9840-f200523d6709